fUST/lending_fUST_20250618
["ID","MTS","AMOUNT","RATE_DAILY","PERIOD"]
[366450694,1750260655247,-1000.0,0.00023021,2]
[366450695,1750260655256,-500.0,0.00023021,2]
[366450696,1750260655266,-1000.0,0.00023021,2]
[366450697,1750260655276,-1000.0,0.00023021,2]
[366450698,1750260655285,-1001.14966039,0.00023021,2]
[366450699,1750260655295,-1000.0,0.00023021,2]
[366450700,1750260655305,-1000.0,0.00023021,2]
[366450701,1750260655315,-1000.0,0.00023021,2]
[366450702,1750260655324,-217.17824598,0.00023021,2]
[366450703,1750260655334,-530.13547856,0.00023021,2]
[366450704,1750260655344,-1004.84127041,0.00023021,2]
[366450705,1750260655354,-1000.0,0.00023021,2]
[366450706,1750260655364,-500.0,0.00023044,2]
[366450707,1750260655373,-4043.77,0.00023068,2]
[366450708,1750260655383,-515.1843813,0.00023068,2]
[366450709,1750260655393,-1500.0,0.00023068,2]
[366450710,1750260655403,-500.0,0.00023068,2]
[366450711,1750260655412,-150.0,0.00023073,2]
[366450712,1750260655422,-1107.09,0.000231,7]
[366450713,1750260655432,-168.0,0.00023109,2]
[366450714,1750260655442,-500.0,0.00023119,2]
[366450715,1750260655452,-2458.97213424,0.00023141,8]
[366450716,1750260655462,-168.0,0.00023154,2]
[366450717,1750260655472,-500.0,0.00023161,2]
[366450718,1750260655482,-306.60933394,0.00023191,2]
[366450719,1750260655491,-168.0,0.00023267,2]
[366450720,1750260655501,-1503.29591431,0.00023268,2]
[366450721,1750260655512,-500.0,0.00023268,2]
[366450722,1750260655524,-564.14652964,0.00023268,2]
[366450723,1750260655533,-1005.85816804,0.00023268,2]
[366450724,1750260655543,-502.00418088,0.00023268,2]
[366450725,1750260655555,-1500.0,0.00023268,2]
[366450726,1750260655564,-168.0,0.00023279,2]
[366450727,1750260655573,-160.0,0.00023286,2]
[366450728,1750260655583,-279.73318184,0.00023287,6]
[366450729,1750260655593,-460.0,0.00023287,6]
[366450730,1750260655603,-152.52403429,0.00023287,6]
[366450731,1750260655614,-460.0,0.00023287,6]
[366450732,1750260655624,-460.0,0.00023287,6]
[366450733,1750260655633,-460.0,0.00023287,6]
[366450734,1750260655642,-460.0,0.00023287,6]
[366450735,1750260655652,-460.0,0.00023287,6]
[366450736,1750260655661,-460.0,0.00023287,6]
[366450737,1750260655671,-460.0,0.00023287,6]
[366450738,1750260655681,-460.0,0.00023287,6]
[366450739,1750260655690,-460.0,0.00023287,6]
[366450740,1750260655699,-460.0,0.00023287,6]
[366450741,1750260655709,-170.88044368,0.00023287,6]
[366450742,1750260655719,-460.0,0.00023287,6]
[366450743,1750260655730,-400.0,0.00023287,6]
[366450744,1750260655740,-167.9476566,0.00023287,6]
[366450745,1750260655750,-460.0,0.00023287,6]
[366450746,1750260655760,-596.38314748,0.00023287,6]
[366450747,1750260655769,-334.72434269,0.00023287,6]
[366450748,1750260655779,-460.0,0.00023287,6]
[366450749,1750260655789,-460.0,0.00023287,6]
[366450750,1750260655799,-460.0,0.00023287,6]
[366450751,1750260655810,-460.0,0.00023287,6]
[366450752,1750260655819,-460.0,0.00023287,6]
[366450753,1750260655830,-460.0,0.00023287,6]
[366450754,1750260655840,-460.0,0.00023287,6]
[366450755,1750260655850,-460.0,0.00023287,6]
[366450756,1750260655861,-460.0,0.00023287,6]
[366450757,1750260655871,-460.0,0.00023287,6]
[366450758,1750260655881,-370.0,0.00023287,6]
[366450759,1750260655891,-460.0,0.00023287,6]
[366450760,1750260655901,-460.0,0.00023287,6]
[366450761,1750260655911,-411.30607031,0.00023287,6]
[366450762,1750260655921,-249.27929008,0.00023287,6]
[366450763,1750260655931,-460.0,0.00023287,6]
[366450764,1750260655941,-700.32,0.00023287,2]
[366450765,1750260655952,-460.0,0.00023287,6]
[366450766,1750260655962,-460.0,0.00023287,6]
[366450767,1750260655971,-460.0,0.00023287,6]
[366450768,1750260655981,-460.0,0.00023287,6]
[366450769,1750260655991,-199.93730541,0.00023287,6]
[366450770,1750260656001,-460.0,0.00023287,6]
[366450771,1750260656010,-460.0,0.00023287,6]
[366450772,1750260656020,-460.0,0.00023287,6]
[366450773,1750260656029,-460.0,0.00023287,6]
[366450774,1750260656039,-538.23529506,0.00023287,6]
[366450775,1750260656048,-1004.44,0.00023287,6]
[366450776,1750260656058,-460.0,0.00023287,6]
[366450777,1750260656067,-808.69,0.00023287,6]
[366450778,1750260656077,-1102.54,0.00023287,6]
[366450779,1750260656087,-460.0,0.00023287,6]
[366450780,1750260656096,-460.0,0.00023287,6]
[366450781,1750260656106,-460.0,0.00023287,6]
[366450782,1750260656116,-460.0,0.00023287,6]
[366450783,1750260656125,-460.0,0.00023287,6]
[366450784,1750260656134,-460.0,0.00023287,6]
[366450785,1750260656143,-460.0,0.00023287,6]
[366450786,1750260656152,-460.0,0.00023287,6]
[366450787,1750260656162,-460.0,0.00023287,6]
[366450788,1750260656171,-460.0,0.00023287,6]
[366450789,1750260656181,-460.0,0.00023287,6]
[366450790,1750260656190,-460.0,0.00023287,6]
[366450791,1750260656200,-460.0,0.00023287,6]
[366450792,1750260656211,-604.63573036,0.00023287,6]
[366450793,1750260656220,-460.0,0.00023287,6]
[366450794,1750260656229,-182.05085615,0.00023287,6]
[366450795,1750260656239,-460.0,0.00023287,6]
[366450796,1750260656249,-590.23,0.00023287,6]
[366450797,1750260656258,-460.0,0.00023287,6]
[366450798,1750260656267,-460.0,0.00023287,6]
[366450799,1750260656277,-460.0,0.00023287,6]
[366450800,1750260656287,-460.0,0.00023287,6]
[366450801,1750260656296,-476.75,0.00023287,6]
[366450802,1750260656306,-460.0,0.00023287,6]
[366450803,1750260656316,-731.77,0.00023287,6]
[366450804,1750260656326,-460.0,0.00023287,6]
[366450805,1750260656335,-460.0,0.00023287,6]
[366450806,1750260656345,-460.0,0.00023287,6]
[366450807,1750260656354,-4300.63,0.00023287,6]
[366450808,1750260656364,-650.41,0.00023287,6]
[366450809,1750260656374,-460.0,0.00023287,6]
[366450810,1750260656383,-460.0,0.00023287,6]
[366450811,1750260656393,-460.0,0.00023287,6]
[366450812,1750260656404,-617.94,0.00023287,6]
[366450813,1750260656414,-460.0,0.00023287,6]
[366450814,1750260656424,-5166.9,0.00023287,6]
[366450815,1750260656433,-604.11,0.00023287,6]
[366450816,1750260656443,-460.0,0.00023287,6]
[366450817,1750260656453,-1472.69,0.00023287,6]
[366450818,1750260656462,-1192.98,0.00023287,6]
[366450819,1750260656472,-1273.19,0.00023287,6]
[366450820,1750260656482,-460.0,0.00023287,6]
[366450821,1750260656492,-640.01,0.00023287,6]
[366450822,1750260656502,-460.0,0.00023287,6]
[366450823,1750260656514,-737.82,0.00023287,6]
[366450824,1750260656524,-460.0,0.00023287,6]
[366450825,1750260656534,-896.7,0.00023287,6]
[366450826,1750260656544,-519.68649308,0.00023287,6]
[366450827,1750260656554,-577.74,0.00023287,6]
[366450828,1750260656564,-1148.27,0.00023287,6]
[366450829,1750260656574,-460.0,0.00023287,6]
[366450830,1750260656583,-495.49,0.00023287,6]
[366450831,1750260656594,-460.0,0.00023287,6]
[366450832,1750260656604,-769.95,0.00023287,6]
[366450833,1750260656614,-687.11,0.00023287,6]
[366450834,1750260656623,-712.31,0.00023287,6]
[366450835,1750260656632,-460.0,0.00023287,6]
[366450836,1750260656643,-1301.24,0.00023287,6]
[366450837,1750260656653,-6101.64,0.00023287,6]
[366450838,1750260656663,-1901.84,0.00023287,6]
[366450839,1750260656672,-460.0,0.00023287,6]
[366450840,1750260656681,-981.89,0.00023287,6]
[366450841,1750260656690,-460.0,0.00023287,6]
[366450842,1750260656700,-812.2,0.00023287,6]
[366450843,1750260656709,-476.88,0.00023287,6]
[366450844,1750260656718,-598.28,0.00023287,6]
[366450845,1750260656728,-1051.25,0.00023287,6]
[366450846,1750260656738,-599.4,0.00023287,6]
[366450847,1750260656748,-2727.34,0.00023287,6]
[366450848,1750260656757,-3939.01,0.00023287,6]
[366450849,1750260656767,-1429.77,0.00023287,6]
[366450850,1750260656777,-1672.92,0.00023287,6]
[366450851,1750260656786,-1046.42,0.00023287,6]
[366450852,1750260656796,-460.0,0.00023287,6]
[366450853,1750260656806,-460.0,0.00023287,6]
[366450854,1750260656815,-460.0,0.00023287,6]
[366450855,1750260656826,-5265.14,0.00023287,6]
[366450856,1750260656836,-1169.53,0.00023287,6]
[366450857,1750260656846,-548.88,0.00023287,6]
[366450858,1750260656855,-531.64,0.00023287,6]
[366450859,1750260656864,-460.0,0.00023287,6]
[366450860,1750260656873,-460.0,0.00023287,6]
[366450861,1750260656882,-1558.17,0.00023287,6]
[366450862,1750260656892,-460.0,0.00023287,6]
[366450863,1750260656901,-793.61,0.00023287,6]
[366450864,1750260656911,-5738.3,0.00023287,6]
[366450865,1750260656920,-720.08,0.00023287,6]
[366450866,1750260656930,-460.0,0.00023287,6]
[366450867,1750260656939,-460.0,0.00023287,6]
[366450868,1750260656948,-460.0,0.00023287,6]
[366450869,1750260656958,-2951.1,0.00023287,6]
[366450870,1750260656968,-730.47,0.00023287,6]
[366450871,1750260656977,-460.0,0.00023287,6]
[366450872,1750260656987,-963.43,0.00023287,6]
[366450873,1750260656996,-460.0,0.00023287,6]
[366450874,1750260657006,-586.04,0.00023287,6]
[366450875,1750260657016,-460.0,0.00023287,6]
[366450876,1750260657026,-2024.67,0.00023287,6]
[366450877,1750260657035,-624.18,0.00023287,6]
[366450878,1750260657045,-460.0,0.00023287,6]
[366450879,1750260657054,-466.82,0.00023287,6]
[366450880,1750260657064,-3707.14,0.00023287,6]
[366450881,1750260657074,-965.25,0.00023287,6]
[366450882,1750260657084,-1615.37,0.00023287,6]
[366450883,1750260657094,-460.0,0.00023287,6]
[366450884,1750260657103,-841.17,0.00023287,6]
[366450885,1750260657113,-460.0,0.00023287,6]
[366450886,1750260657123,-1070.72,0.00023287,6]
[366450887,1750260657132,-460.0,0.00023287,6]
[366450888,1750260657142,-1780.78,0.00023287,6]
[366450889,1750260657152,-460.0,0.00023287,6]
[366450890,1750260657161,-460.0,0.00023287,6]
[366450891,1750260657171,-1090.64,0.00023287,6]
[366450892,1750260657180,-460.0,0.00023287,6]
[366450893,1750260657189,-578.09,0.00023287,6]
[366450894,1750260657199,-989.59,0.00023287,6]
[366450895,1750260657208,-460.0,0.00023287,6]
[366450896,1750260657217,-693.04,0.00023287,6]
[366450897,1750260657227,-192.82220957,0.00023287,6]
[366450898,1750260657237,-606.16,0.00023287,6]
[366450899,1750260657341,-1207.43,0.00023287,6]
[366450900,1750260657351,-460.0,0.00023287,6]
[366450901,1750260657361,-460.0,0.00023287,6]
[366450902,1750260657371,-1147.33,0.00023287,6]
[366450903,1750260657381,-460.0,0.00023287,6]
[366450904,1750260657391,-4607.53,0.00023287,6]
[366450905,1750260657400,-2605.62,0.00023287,6]
[366450906,1750260657410,-460.0,0.00023287,6]
[366450907,1750260657419,-460.0,0.00023287,6]
[366450908,1750260657429,-2097.84,0.000233,7]
[366450909,1750260657438,-2458.97213424,0.00023314,9]
[366450910,1750260657448,-1000.0,0.00023321,2]
[366450911,1750260657458,-697.25090011,0.00023321,2]
[366450912,1750260657467,-1000.0,0.00023321,2]
[366450913,1750260657477,-500.83542297,0.00023321,2]
[366450914,1750260657486,-1000.0,0.00023321,2]
[366450915,1750260657496,-1131.73042351,0.00023321,2]
[366450916,1750260657506,-1000.0,0.00023321,2]
[366450917,1750260657521,-1200.0,0.00023321,2]
[366450918,1750260657530,-1000.0,0.00023321,2]
[366450919,1750260657540,-500.50120501,0.00023321,2]
[366450920,1750260657550,-551.71866101,0.00023321,2]
[366450921,1750260657559,-50292.02094037,0.00023337,2]
[366450922,1750260657569,-500.0,0.00023338,2]
[366450923,1750260657579,-258.607,0.00023413,2]
[366450924,1750260657588,-216.101,0.00023435,2]
[366450925,1750260657599,-2160.0,0.00023462,2]
[366450926,1750260657608,-465.621,0.00023462,2]
[366450927,1750260657617,-973.804,0.00023462,2]
[366450928,1750260657627,-500.0,0.00023462,2]
[366450929,1750260657636,-306.60933394,0.00023466,2]
[366450930,1750260657645,-2458.97213424,0.00023486,9]
[366450931,1750260657655,-160.35931239,0.00023499,2]
[366450932,1750260657665,-82249.92,0.000235,7]
[366450933,1750260657674,-1351.877723,0.000235,2]
[366450934,1750260657684,-151.0,0.00023539,6]
[366450935,1750260657693,-500.0,0.0002356,5]
[366450936,1750260657703,-460.0,0.00023561,6]
[366450937,1750260657712,-460.0,0.00023561,6]
[366450938,1750260657722,-460.0,0.00023561,6]
[366450939,1750260657732,-460.0,0.00023561,6]
[366450940,1750260657742,-460.0,0.00023561,6]
[366450941,1750260657751,-460.0,0.00023561,6]
[366450942,1750260657761,-460.0,0.00023561,6]
[366450943,1750260657771,-460.0,0.00023561,6]
[366450944,1750260657781,-440.0,0.00023561,6]
[366450945,1750260657790,-460.0,0.00023561,6]
[366450946,1750260657799,-460.0,0.00023561,6]
[366450947,1750260657809,-225.9898967,0.00023561,6]
[366450948,1750260657818,-460.0,0.00023561,6]
[366450949,1750260657828,-460.0,0.00023561,6]
[366450950,1750260657837,-460.0,0.00023561,6]
[366450951,1750260657846,-460.0,0.00023561,6]
[366450952,1750260657855,-460.0,0.00023561,6]
[366450953,1750260657865,-460.0,0.00023561,6]
[366450954,1750260657874,-460.0,0.00023561,6]
[366450955,1750260657883,-460.0,0.00023561,6]
[366450956,1750260657893,-460.0,0.00023561,6]
[366450957,1750260657903,-500.0,0.00023561,2]
[366450958,1750260657912,-460.0,0.00023561,6]
[366450959,1750260657922,-460.0,0.00023561,6]
[366450960,1750260657933,-460.0,0.00023561,6]
[366450961,1750260657943,-460.0,0.00023561,6]
[366450962,1750260657953,-460.0,0.00023561,6]
[366450963,1750260657962,-700.32,0.00023561,2]
[366450964,1750260657973,-460.0,0.00023561,6]
[366450965,1750260657983,-460.0,0.00023561,6]
[366450966,1750260657993,-460.0,0.00023561,6]
[366450967,1750260658003,-460.0,0.00023561,6]
[366450968,1750260658012,-460.0,0.00023561,6]
[366450969,1750260658022,-460.0,0.00023561,6]
[366450970,1750260658031,-410.35979412,0.00023561,6]
[366450971,1750260658041,-471.86701098,0.00023561,6]
[366450972,1750260658051,-1004.44,0.00023561,6]
[366450973,1750260658061,-460.0,0.00023561,6]
[366450974,1750260658071,-808.69,0.00023561,6]
[366450975,1750260658080,-1102.54,0.00023561,6]
[366450976,1750260658089,-460.0,0.00023561,6]
[366450977,1750260658099,-460.0,0.00023561,6]
[366450978,1750260658108,-460.0,0.00023561,6]
[366450979,1750260658118,-460.0,0.00023561,6]
[366450980,1750260658127,-460.0,0.00023561,6]
[366450981,1750260658137,-460.0,0.00023561,6]
[366450982,1750260658147,-460.0,0.00023561,6]
[366450983,1750260658157,-460.0,0.00023561,6]
[366450984,1750260658167,-460.0,0.00023561,6]
[366450985,1750260658177,-460.0,0.00023561,6]
[366450986,1750260658186,-460.0,0.00023561,6]
[366450987,1750260658196,-427.88153876,0.00023561,6]
[366450988,1750260658205,-579.39406772,0.00023561,6]
[366450989,1750260658215,-460.0,0.00023561,6]
[366450990,1750260658224,-460.0,0.00023561,6]
[366450991,1750260658233,-590.23,0.00023561,6]
[366450992,1750260658242,-460.0,0.00023561,6]
[366450993,1750260658251,-460.0,0.00023561,6]
[366450994,1750260658260,-460.0,0.00023561,6]
[366450995,1750260658269,-460.0,0.00023561,6]
[366450996,1750260658282,-476.75,0.00023561,6]
[366450997,1750260658291,-460.0,0.00023561,6]
[366450998,1750260658299,-731.77,0.00023561,6]
[366450999,1750260658309,-460.0,0.00023561,6]
[366451000,1750260658318,-151.0,0.00023561,7]
[366451001,1750260658327,-460.0,0.00023561,6]
[366451002,1750260658336,-460.0,0.00023561,6]
[366451003,1750260658346,-151.0,0.00023561,7]
[366451004,1750260658355,-4300.63,0.00023561,6]
[366451005,1750260658364,-650.41,0.00023561,6]
[366451006,1750260658373,-460.0,0.00023561,6]
[366451007,1750260658382,-460.0,0.00023561,6]
[366451008,1750260658391,-556.74009747,0.00023561,6]
[366451009,1750260658401,-617.94,0.00023561,6]
[366451010,1750260658410,-460.0,0.00023561,6]
[366451011,1750260658420,-5166.9,0.00023561,6]
[366451012,1750260658429,-604.11,0.00023561,6]
[366451013,1750260658438,-151.0,0.00023561,7]
[366451014,1750260658447,-460.0,0.00023561,6]
[366451015,1750260658456,-1472.69,0.00023561,6]
[366451016,1750260658466,-1192.98,0.00023561,6]
[366451017,1750260658475,-151.0,0.00023561,7]
[366451018,1750260658484,-1273.19,0.00023561,6]
[366451019,1750260658493,-460.0,0.00023561,6]
[366451020,1750260658503,-640.01,0.00023561,6]
[366451021,1750260658515,-460.0,0.00023561,6]
[366451022,1750260658524,-737.82,0.00023561,6]
[366451023,1750260658533,-460.0,0.00023561,6]
[366451024,1750260658543,-896.7,0.00023561,6]
[366451025,1750260658554,-151.0,0.00023561,7]
[366451026,1750260658563,-166.646822,0.00023561,7]
[366451027,1750260658572,-577.74,0.00023561,6]
[366451028,1750260658581,-1148.27,0.00023561,6]
[366451029,1750260658591,-460.0,0.00023561,6]
[366451030,1750260658600,-460.0,0.00023561,6]
[366451031,1750260658610,-769.95,0.00023561,6]
[366451032,1750260658620,-687.11,0.00023561,6]
[366451033,1750260658629,-712.31,0.00023561,6]
[366451034,1750260658639,-460.0,0.00023561,6]
[366451035,1750260658648,-1301.24,0.00023561,6]
[366451036,1750260658658,-6101.64,0.00023561,6]
[366451037,1750260658668,-1901.84,0.00023561,6]
[366451038,1750260658677,-151.0,0.00023561,7]
[366451039,1750260658687,-460.0,0.00023561,6]
[366451040,1750260658697,-981.89,0.00023561,6]
[366451041,1750260658706,-460.0,0.00023561,6]
[366451042,1750260658715,-812.2,0.00023561,6]
[366451043,1750260658725,-476.88,0.00023561,6]
[366451044,1750260658734,-1051.25,0.00023561,6]
[366451045,1750260658744,-598.28,0.00023561,6]
[366451046,1750260658754,-599.4,0.00023561,6]
[366451047,1750260658763,-2727.34,0.00023561,6]
[366451048,1750260658772,-151.0,0.00023561,7]
[366451049,1750260658784,-3939.01,0.00023561,6]
[366451050,1750260658793,-1429.77,0.00023561,6]
[366451051,1750260658802,-1672.92,0.00023561,6]
[366451052,1750260658812,-201.066712,0.00023561,7]
[366451053,1750260658821,-1046.42,0.00023561,6]
[366451054,1750260658830,-460.0,0.00023561,6]
[366451055,1750260658840,-460.0,0.00023561,6]
[366451056,1750260658850,-460.0,0.00023561,6]
[366451057,1750260658860,-5265.14,0.00023561,6]
[366451058,1750260658870,-154.483303,0.00023561,7]
[366451059,1750260658879,-1169.53,0.00023561,6]
[366451060,1750260658888,-548.88,0.00023561,6]
[366451061,1750260658898,-531.64,0.00023561,6]
[366451062,1750260658907,-151.0,0.00023561,7]
[366451063,1750260658917,-460.0,0.00023561,6]
[366451064,1750260658926,-460.0,0.00023561,6]
[366451065,1750260658936,-1558.17,0.00023561,6]
[366451066,1750260658945,-151.0,0.00023561,7]
[366451067,1750260658954,-151.0,0.00023561,7]
[366451068,1750260658964,-793.61,0.00023561,6]
[366451069,1750260658973,-5738.3,0.00023561,6]
[366451070,1750260658982,-720.08,0.00023561,6]
[366451071,1750260658992,-460.0,0.00023561,6]
[366451072,1750260659001,-460.0,0.00023561,6]
[366451073,1750260659010,-460.0,0.00023561,6]
[366451074,1750260659020,-2951.1,0.00023561,6]
[366451075,1750260659029,-730.47,0.00023561,6]
[366451076,1750260659038,-240.0,0.00023561,6]
[366451077,1750260659048,-963.43,0.00023561,6]
[366451078,1750260659057,-460.0,0.00023561,6]
[366451079,1750260659066,-586.04,0.00023561,6]
[366451080,1750260659076,-460.0,0.00023561,6]
[366451081,1750260659086,-2024.67,0.00023561,6]
[366451082,1750260659095,-624.18,0.00023561,6]
[366451083,1750260659104,-460.0,0.00023561,6]
[366451084,1750260659114,-466.82,0.00023561,6]
[366451085,1750260659123,-3707.14,0.00023561,6]
[366451086,1750260659133,-965.25,0.00023561,6]
[366451087,1750260659143,-1615.37,0.00023561,6]
[366451088,1750260659152,-460.0,0.00023561,6]
[366451089,1750260659161,-841.17,0.00023561,6]
[366451090,1750260659170,-460.0,0.00023561,6]
[366451091,1750260659179,-1070.72,0.00023561,6]
[366451092,1750260659189,-460.0,0.00023561,6]
[366451093,1750260659198,-1780.78,0.00023561,6]
[366451094,1750260659207,-380.0,0.00023561,6]
[366451095,1750260659217,-460.0,0.00023561,6]
[366451096,1750260659227,-1090.64,0.00023561,6]
[366451097,1750260659236,-460.0,0.00023561,6]
[366451098,1750260659246,-578.09,0.00023561,6]
[366451099,1750260659255,-989.59,0.00023561,6]
[366451100,1750260659265,-339.44891595,0.00023561,6]
[366451101,1750260659274,-693.04,0.00023561,6]
[366451102,1750260659283,-606.16,0.00023561,6]
[366451103,1750260659293,-1207.43,0.00023561,6]
[366451104,1750260659302,-460.0,0.00023561,6]
[366451105,1750260659312,-460.0,0.00023561,6]
[366451106,1750260659321,-1147.33,0.00023561,6]
[366451107,1750260659330,-460.0,0.00023561,6]
[366451108,1750260659340,-4607.53,0.00023561,6]
[366451109,1750260659349,-2605.62,0.00023561,6]
[366451110,1750260659358,-460.0,0.00023561,6]
[366451111,1750260659368,-460.0,0.00023561,6]
[366451112,1750260659377,-3524.59828094,0.00023565,2]
[366451113,1750260659387,-1500.0,0.00023568,2]
[366451114,1750260659396,-1500.0,0.00023568,2]
[366451115,1750260659405,-1500.0,0.00023568,2]
[366451116,1750260659414,-1503.80708916,0.00023568,2]
[366451117,1750260659424,-890.22755035,0.00023568,2]
[366451118,1750260659433,-1500.0,0.00023568,2]
[366451119,1750260659443,-1503.33167574,0.00023568,2]
[366451120,1750260659452,-500.0,0.00023573,2]
[366451121,1750260659462,-500.0,0.00023573,2]
[366451122,1750260659471,-20089.08022616,0.00023595,2]
[366451123,1750260659481,-151.0,0.00023595,7]
[366451124,1750260659490,-1937.03275659,0.00023597,2]
[366451125,1750260660052,-8544.80947333,0.00023597,2]
[366451126,1750260660066,-3000.0,0.000236,2]
[366451127,1750260660077,-2522.92715789,0.000236,2]
[366451128,1750260660594,-500.0,0.00019998,2]
[366451129,1750260660604,-4.14295602,0.00019998,2]
[366451130,1750260660766,-50.34608743,0.00019998,2]
[366451131,1750260660779,-445.51095655,0.00019998,2]
[366451132,1750260660788,-310.22528627,0.00019998,2]
[366451133,1750260660800,-189.77471373,0.00019998,2]
[366451134,1750260660811,-500.0,0.00019998,2]
[366451135,1750260660820,-167.13335414,0.00019998,2]
[366451136,1750260660832,-332.86664586,0.00019998,2]
[366451137,1750260660841,-500.0,0.00019998,2]
[366451138,1750260660851,-616.50338245,0.00019998,2]
[366451139,1750260660861,-500.0,0.00019998,2]
[366451140,1750260660870,-283.42030179,0.00019998,2]
[366451141,1750260660881,-216.57969821,0.00019998,2]
[366451142,1750260660891,-500.0,0.00019998,2]
[366451143,1750260660902,-500.0,0.00019998,2]
[366451144,1750260660911,-500.0,0.00019998,2]
[366451145,1750260660920,-500.0,0.00019998,2]
[366451146,1750260660930,-500.0,0.00019998,2]
[366451147,1750260660939,-500.0,0.00019998,2]
[366451148,1750260660949,-500.0,0.00019998,2]
[366451149,1750260660959,-500.0,0.00019998,2]
[366451150,1750260660969,-500.0,0.00019998,2]
[366451151,1750260660979,-500.0,0.00019998,2]
[366451152,1750260660988,-500.0,0.00019998,2]
[366451153,1750260660998,-306.69,0.0002098,10]
[366451154,1750260661008,-160.0,0.00021511,2]
[366451155,1750260661018,-460.0,0.00021917,6]
[366451156,1750260661028,-200.0,0.00021917,10]
[366451157,1750260661038,-200.0,0.00021917,10]
[366451158,1750260661048,-460.0,0.00021917,6]
[366451159,1750260661058,-460.0,0.00021917,6]
[366451160,1750260661068,-460.0,0.00021917,6]
[366451161,1750260661078,-440.0,0.00022191,6]
[366451162,1750260661088,-460.0,0.00022191,6]
[366451163,1750260661098,-460.0,0.00022465,6]
[366451164,1750260661108,-151.0,0.00023013,7]
[366451165,1750260661118,-87918.76284211,0.000236,2]
[366451166,1750260661128,-152.795681,0.000236,7]
[366451167,1750260661139,-151.0,0.000236,7]
[366451168,1750260661149,-151.0,0.000236,7]
[366451169,1750260661158,-151.0,0.000236,7]
[366451170,1750260661167,-151.0,0.000236,7]
[366451171,1750260661177,-151.0,0.000236,7]
[366451172,1750260661188,-151.0,0.000236,7]
[366451173,1750260661197,-151.0,0.000236,7]
[366451174,1750260661207,-151.0,0.000236,7]
[366451175,1750260661217,-151.0,0.000236,7]
[366451176,1750260661227,-151.0,0.000236,7]
[366451177,1750260661236,-151.0,0.000236,7]
[366451178,1750260661246,-151.0,0.000236,7]
[366451179,1750260661256,-151.0,0.000236,7]
[366451180,1750260661265,-3000.0,0.0002361,2]
[366451181,1750260661275,-20089.08022616,0.00023613,2]
[366451182,1750260661285,-10730.1363725,0.00023615,2]
[366451183,1750260661294,-1000.0,0.00023616,2]
[366451184,1750260661304,-3000.0,0.0002362,2]
[366451185,1750260661315,-500.0,0.0002362,2]
[366451186,1750260661326,-250.22840896,0.00023621,2]
[366451187,1750260661335,-3524.59828094,0.00023622,2]
[366451188,1750260661345,-3524.59828094,0.00023628,2]
[366451189,1750260661353,-3000.0,0.0002363,2]
[366451190,1750260661363,-20089.08022616,0.00023633,2]
[366451191,1750260661373,-151.0,0.00023633,7]
[366451192,1750260661382,-151.0,0.00023633,7]
[366451193,1750260661392,-151.0,0.00023633,7]